Workbook

Sheet CoverPage
A1: Permanent Local Housing Allocation (PLHA) Formula Allocation
A3: 2020 Application
A20: State of California
A21: Governor, Gavin Newsom
A23: Lourdes Castro Ramírez, Secretary
A24: Business, Consumer Services and Housing Agency
A26: Gustavo Velasquez, Director
A27: Department of Housing and Community Development
A30: Program Design and Implementation, PLHA Program
A31: 2020 West El Camino Avenue, Suite 150, Sacramento, CA 95833
A32: PLHA Program Email: PLHA@hcd.ca.gov
A35: Final Filing Date: October 23, 2020 through December 31, 2020 at 11:59 P.M. PST

Sheet Instructions (hidden)
A1: Instructions | AJ1: ='Formula Allocation Application'!#REF! -> 
A2: HCD will only accept applications through a postal carrier service such as U.S. Postal Service, UPS, FedEx or other carrier services that provide date stamp verification confirming delivery to HCD’s office. A complete original application and an electronic copy on a USB flash drive with all applicable information must be received by HCD via postal carrier no later than 5:00 p.m. on:
A3: 2020-07-27
A4: Applications must be on the Department’s forms and cannot be altered or modified by the Sponsor. Excel forms must be in Excel format and unprotected, not a .pdf document. Please fill-out the Application Support worksheet and email the entire workbook to Application Support for application errors at AppSupport@hcd.ca.gov.
A5: General Instructions (Addition instructions and guidance are given throughout the Supplemental Application in "red" text and in cell comments.
A6: "Yellow" cells are for Sponsor input. Failure to provide the required attachments and documentation may disqualify your application from consideration or may negatively impact your point score.
A7: Required attachments are indicated in "Orange" throughout the Supplemental Application. Failure to provide the required attachments and documentation may disqualify your application from consideration or may negatively impact your point score. Electronically attached files must use the naming convention in the Supplemental Application. For Example: "App1 Payee Data" for Sponsor 1 Payee Data Record/ STD. 204.
A8: Self score points awarded are indicated in "blue" cells in the 'Selection Criteria' worksheet. These are automated calculations based on the inputs provided by the Sponsor.
A9: "Red" shaded cells indicate the Sponsor has failed to meet a requirement of the program. Point cells in "Scoring" worksheet shaded in "Red" indicate that the Sponsor has failed to meet the minimum points required.
A10: Universal Application (UA) Instructions
A11: Sponsors must complete the following worksheets in the UA.
A12: General
A13: Narrative
A14: Site & Units
A15: Misc.
A16: Rents
A17: Subsidies
A18: Dev Budget
A19: TBL and High Cost Test
A20: Developer Fee 2017
A21: Supportive Services Costs (Supportive Housing and Special Needs Projects Only)
A22: Reserves
A23: Operating
A24: Cash Flow
A25: Supplemental Application Instructions
A26: Sponsor must complete the following worksheets in the Supplemental Application.
A27: B - Project Requirements
A28: B1 - Development Team Contacts
A29: B2 - SH Experience 7302(f)(1-3) (Supportive Housing Projects Only)
A30: B3 - Supportive Services Plan (Supportive Housing and Special Needs Projects Only)
A31: B4 - SS Verification (Supportive Housing and Special Needs Projects Only)
A32: B5 - At High Risk (At High Risk Projects Only)
A33: C - Local & Env Verification
A34: D - Max Loan & Unit Mix
A35: E - Project Selection
A36: F - Certification & Legal
A37: Disclosure of Application: Information provided in this application and attachments will become a public record available for review by the public pursuant to the Public Records Act. As such, any materials provided will be disclosable to any person making a public records request. Please use discretion in providing HCD with information that is not specifically requested, including but not limited to, bank account numbers, personal phone numbers and home addresses. By providing this information to HCD, the Sponsor is waiving any claim of confidentiality and consents to the disclosure of all submitted material upon request.

Sheet Instructions & Checklist
A1: Instructions | AJ1: ='Formula Allocation Application'!AJ1 -> Rev. 10/19/20
A2: When opening this file, a yellow banner at the top may appear with a button that says "Enable Content". It is essential that you click this box so that the macros are enabled. Enabling macros is necessary for full worksheet functionality. Macros do not work with Microsoft's Excel version for Apple Mac.
A3: Applications must be submitted electronically to the Department’s website. Requirements for uploading the Application Workbook and required supporting documentation, including naming conventions, are described in the application instructions available at https://www.hcd.ca.gov/grants-funding/active-funding/plha.shtml. All applicable information must be received by HCD no later than 11:59 p.m. on:
A4: 2020-12-31
A5: Applications must be on the Department’s forms and cannot be altered or modified by the Applicant. Excel forms must be in Excel format and 'save as' .xls or .xlsx. Do not 'save as' .xlsm or .pdf format. For application errors please fill out the Application Support worksheet and email the entire workbook to Application Support for application errors at AppSupport@hcd.ca.gov and PLHA@hcd.ca.gov
A6: General Instructions (Additional instructions and guidance are given throughout the Formula Allocation Application in "red" text and in cell comments.
A7: Guideline references are made with "§" and the corresponding guideline section number.
A8: "Yellow" cells are for Sponsor input. Failure to provide the required attachments and documentation may disqualify your application from consideration or may negatively impact your point score.
A9: Required attachments are indicated in "orange" throughout the Supplemental Application. Failure to provide the required attachments and documentation may disqualify your application from consideration or may negatively impact your point score. Electronically attached files must use the naming convention in the PLHA Application. For Example: "App1 Payee Data" for Sponsor 1 Payee Data Record/STD. 204.
A10: Threshold items are indicated in "blue" cells.
A11: "Red" shaded cells indicate the Sponsor has failed to meet a requirement of the program. Point cells in the Scoring worksheet shaded in "red" indicate that the Sponsor has failed to meet the minimum points required.
A12: Sponsor must complete the following worksheets in the PLHA Formula Allocation Application.
A13: Formula Allocation Application
A14: 302(c)(4) Plan
A15: Legislative Contacts
A16: Checklist
A17: Threshold Requirement | E17: Electronic File Name | L17: Document Description | AJ17: Included?
A18: X | E18: Application and Plan Adoption Reso | L18: §302(c)(4)(D) Evidence that the Plan was authorized and adopted by resolution by the Local jurisdiction and that the public had an adequate opportunity to review and comment on its content. PLHA webpage for Application and Plan Adoption Resolution Document
A19: X | C19: X | E19: App1 TIN | L19: ='Formula Allocation Application'!L20 -> Taxpayer Identification Number Document
A20: X | C20: X | E20: ='Formula Allocation Application'!D21 -> Applicant Agreement | G20: ='Formula Allocation Application'!D20 -> App1 TIN | L20: ='Formula Allocation Application'!L21 -> Legally binding agreement between Delegating and Administering Local Governments
A21: X | C21: X | E21: Plan Adoption Reso | L21: §302(c)(4)(D) Evidence that the Plan was authorized and adopted by resolution by the Local jurisdiction and that the public had an adequate opportunity to review and comment on its content. PLHA webpage for Plan Adoption Resolution Document
A22: X | E22: ='Formula Allocation Application'!D45 -> Reuse Plan | L22: Program Income Reuse Plan describing how repaid loans will be used for eligible activities in Section 301.
A23: Disclosure of Application (California Public Records Act Statutes of 1968 Chapter 1473): Information provided in the application will become a public record available for review by the public, pursuant to the California Public Records Act Statutes of 1968 Chapter 1473. As such, any materials provided will be disclosable to any person making a request under this Act. The Department cautions Applicants to use discretion in providing information not specifically requested, including but not limited to, bank accounts, personal phone numbers and home addresses. By providing this information to the Department, the Applicant is waiving any claim of confidentiality and consents to the disclosure of submitted material upon request."

Sheet Formula Allocation Application
A1: Local Government Formula Allocation | AJ1: Rev. 10/19/20 | AS1: Unit of general purpose local government.
A2: Eligible Applicant Type:
A3: Local Government Recipient of PLHA Formula Allocation:
A4: Approximate PLHA Formula Allocation Amount: | M4: =IFERROR(VLOOKUP(W3,Formula!C14:M365,11,FALSE),0) -> 0 | R4: Allowable Local Admin (5%): | Y4: =AV4 -> 0 | AC4: Admin Requested | AU4: =M4*0.05 -> 0 | AV4: =ROUNDDOWN(AU4,0) -> 0
A5: Instructions: If the Local Government Recipient of the PLHA Formula Allocation delegated its PLHA formula allocation to a Local Housing Trust Fund or to another Local Government, the Applicant (for which information is required below) is the Local Housing Trust Fund or administering Local Government. The PLHA award will be made to the Applicant (upon meeting threshold requirements) and the Applicant is responsible for meeting all program requirements throughout the term of the Standard Agreement. The 302(c)(4) Plan template worksheet requires first choosing one or more of the Eligible Activities listed below. If "Yes" is clicked, the 302(c)(4) Plan worksheet opens a series of questions about what precise activities are planned. Some specific activities, such as providing downpayment assistance to lower-income households for acquisition of an affordable home, could be included under either Activity 2 or 9. Please only choose one of those Activities; don't list the downpayment assistance under both Activities. If the PLHA funds are used for the same Activity but for different Area Median Income (AMI) level, select the same Activity twice (or more times) and the different AMI level the Activity will serve. Please enter the percentage of funds allocated to the Activity in only the first Activity listing to avoid double counting the funding allocation. For each year (2019-2023), allocations must equal to 100% annually including the allowable administrative costs of up to five percent.
A6: Eligible Applicants §300 | AP6: CA-512 | AQ6: Daly City/San Mateo County CoC | AR6: 627447
A7: §300(a) and (b) Eligible Applicants for the Entitlement and Non-Entitlement formula component described in Section §100(b)(1) and (2) are limited to the metropolitan cities and urban counties allocated a grant for the federal fiscal year 2017 pursuant to the federal CDBG formula specified in 42 USC, Section §5306 and Non-entitlement local governments.
A8: Applicant:
A9: Address:
A10: City: | J10: State: | O10: Zip: | U10: County:
A11: Auth Rep Name: | J11: Title: | R11: Auth Rep. Email: | AF11: Phone:
A12: Address: | R12: City: | AB12: State: | AF12: Zip Code:
A13: Contact Name: | J13: Title: | R13: Contact Email: | AD13: Contact Phone:
A14: Address: | R14: City: | AB14: State: | AF14: Zip Code:
A15: §300(d) Is Applicant delegated by another Local government to administer on its behalf its formula allocation of program funds?
A16: §300(d) If Applicant answered "Yes" above, has the Applicant attached the legally binding agreement required by §300 (c) and (d)?
A17: If applicant answered "Yes" above, has the delegated Applicant completed an additional application submission on behalf of the delegating jurisdiction?
A18: File Name: | D18: Application and Plan Adoption Reso | L18: §302(c)(4)(D) Evidence that the Plan was authorized and adopted by resolution by the Local jurisdiction and that the public had an adequate opportunity to review and comment on its content. PLHA webpage for Application and Plan Adoption Resolution Document | AE18: Uploaded to HCD?
A19: File Name: | D19: App1 Signature Block | L19: Signature Block - upload in Microsoft Word Document | AE19: Uploaded to HCD?
A20: File Name: | D20: App1 TIN | L20: Taxpayer Identification Number Document | AE20: Uploaded to HCD?
A21: File Name: | D21: Applicant Agreement | L21: Legally binding agreement between Delegating and Administering Local Governments | AE21: Uploaded to HCD?
A22: Eligible Activities, §301 | AP22: CA-512 | AQ22: Daly City/San Mateo County CoC | AR22: 627447
A23: §301(a) Eligible activities are limited to the following: | AJ23: Included?
A24: §301(a)(1) The predevelopment, development, acquisition, rehabilitation, and preservation of multifamily, residential live-work, rental housing that is affordable to Extremely low-,Very low-, Low-, or Moderate-income households, including necessary operating subsidies.
A25: §301(a)(2) The predevelopment, development, acquisition, rehabilitation, and preservation of affordable rental and ownership housing, including Accessory Dwelling Units (ADUs), that meets the needs of a growing workforce earning up to 120 percent of AMI, or 150 percent of AMI in high-cost areas. ADUs shall be available for occupancy for a term of no less than 30 days.
A26: §301(a)(3) Matching portions of funds placed into Local or Regional Housing Trust Funds.
A27: §301(a)(4) Matching portions of funds available through the Low- and Moderate-Income Housing Asset Fund pursuant to subdivision (d) of HSC Section 34176.
A28: §301(a)(5) Capitalized Reserves for services connected to the preservation and creation of new permanent supportive housing.
A29: §301(a)(6) Assisting persons who are experiencing or At-risk of homelessness, including, but not limited to, providing rapid re-housing, rental assistance, supportive/case management services that allow people to obtain and retain housing, operating and capital costs for navigation centers and emergency shelters, and the new construction, rehabilitation, and preservation of permanent and transitional housing.
A30: §301(a)(7) Accessibility modifications in Lower-income Owner-occupied housing.
A31: §301(a)(8) Efforts to acquire and rehabilitate foreclosed or vacant homes and apartments.
A32: §301(a)(9) Homeownership opportunities, including, but not limited to, down payment assistance.
A33: §301(a)(10) Fiscal incentives made by a county to a city within the county to incentivize approval of one or more affordable housing Projects, or matching funds invested by a county in an affordable housing development Project in a city within the county, provided that the city has made an equal or greater investment in the Project. The county fiscal incentives shall be in the form of a grant or low-interest loan to an affordable housing Project. Matching funds investments by both the county and the city also shall be a grant or low-interest deferred loan to the affordable housing Project.
A34: Threshold Requirements, §302
A35: §302(a) Housing Element compliance: Applicant or Delegating Local Government's Housing Element was adopted by the Local Government’s governing body by the application deadline and subsequently determined to be in substantial compliance with state Housing Element Law pursuant to Government Code Section 65585.
A36: §302(b) Applicant or Delegating Local Government has submitted the current or prior year's Annual Progress Report to the Department of Housing and Community Development pursuant to Government Code Section 65400.
A37: §302(c)(2) Applicant certifies that submission of the application was authorized by the governing board of the Applicant.
A38: §302(c)(3) Applicant certifies that, if the Local Government proposes allocation of funds for any activity to another entity, the Local government’s selection process had no conflicts of interest and was accessible to the public.
A39: §302(c)(4) Does the application include a Plan in accordance with §302(c)(4)?
A40: §302(c)(4)(D) Applicant certifies that the Plan was authorized and adopted by resolution by the Local Government and that the public had an adequate opportunity to review and comment on its content
A41: §302(c)(5) Applicant certifies that the Plan submitted is for a term of five years. Local Governments agree to inform the Department of changes made to the Plan in each succeeding year of the term of the Plan.
A42: §302(c)(6) Applicant certifies that it will ensure compliance with §302(c)(6) if funds are used for the acquisition, construction, or rehabilitation of for-sale housing projects or units within for-sale housing projects.
A43: §302(c)(7) Applicant certifies that it will ensure that the PLHA assistance is in the form of a low-interest, deferred loan to the Sponsor of the Project, if funds are used for the development of an Affordable Rental Housing Development. The loan shall be evidenced through a Promissory Note secured by a Deed of Trust.
A44: §302(c)(8) Has Applicant attached a program income reuse plan describing how repaid loans will be reused for eligible activities specified in Section 301?
A45: File Name: | D45: Reuse Plan | H45: Program Income Reuse Plan describing how repaid loans will be used for eligible activities in Section 301. | L45: Program Income Reuse Plan describing how repaid loans will be used for eligible activities in Section 301. | AE45: Uploaded to HCD?
A46: Administration
A47: Applicant agrees to adhere to §500, Accounting Records.
A48: Applicant agrees to adhere to §501, Audits/Monitoring of PLHA Files.
A49: Applicant agrees to adhere to §502, Cancellation/Termination.
A50: Applicant agrees to adhere to §503, Reporting.
A51: Certifications
A52: On behalf of the entity identified below, I certify that: The information, statements and attachments included in this application are, to the best of my knowledge and belief, true and correct and I possess the legal authority to submit this application on behalf of the entity identified in the signature block.
A54: Authorized Representative Printed Name | M54: Title | U54: Signature | AK54: Date

Sheet Competitive Allocation (hidden)
A1: Competitive Allocation | AJ1: Rev. 2/19/19 | AS1: Unit of general purpose local government.
A2: Estimated Allocation From SB 2 Formula Allocation: | X2: Allowable Local Admin (5%):
A3: Eligible Applicants §400 | AP3: CA-512 | AQ3: Daly City/San Mateo County CoC | AR3: 627447
A4: (a) ) Eligible Applicants for the non-entitlement competitive allocation described in Section 100(b)(3) are limited to non-entitlement jurisdictions.
A5: §300(c) For a list of eligible Applicants for each program component, please see Appendix A of the PLHA Guidelines.
A6: Eligible Applicant:
A7: Applicant: | E7: Alpine County
A8: AE Name:
A9: Address:
A10: City: | J10: State: | O10: Zip: | U10: County: | W10: Alpine
A11: (d) Is Applicant designating another Local government to administer on its behalf its formula allocation of program funds?
A12: (d) If Applicant answered "Yes" above, have the governments enter into a legally binding agreement and the funds are expended for eligible activities and consistent with program requirements?
A13: Eligible Activites, §401, Threashold Requirements, §402 | AP13: CA-512 | AQ13: Daly City/San Mateo County CoC | AR13: 627447
A14: §402(a) Housing Element compliance: Does the Applicant and any co-applicants have a Housing Element that has been adopted by the jurisdiction’s governing body by the deadline specified in the NOFA and subsequently determined to be in substantial compliance with state Housing Element law pursuant to GC Section 65585? | AK14: Yes
A15: §402(b) Has the Applicant and any co-applicants submitted to the Department the APR required by GC Section 65400 for the current or prior year by the application deadline date? | AK15: Yes
A16: §401(a) Eligible activities are limited to the following and must take place within the jurisdiction of the Applicant Local government: | AH16: Included?
A17: §401(a)(1) Development of new multifamily rental housing that is Affordable to households at or below 60 percent of AMI or substantial rehabilitation of multifamily rental housing that will be Affordable to households at or below 60 percent of AMI, but which is not currently restricted as Affordable housing.
A18: §402 (c)(1) Applicant certifies that if the Local government proposes allocation of funds for any activity to another entity, the selection process shall avoid conflicts of interest, and shall be accessible to the public. | AK18: Yes
A19: §402 (c)(4) Does Applicant have site control? If yes, enter form of site control and most recent execution date.
A20: Form of site control: | Z20: Most recent document execution date:
A21: Provide details below for unusual site control special circumstances:
A23: File Name: | D23: B42 | F23: Site Control | L23: Provide documentation of the form of site control selected above meeting UMR §8303. | AE23: Attached and on USB?
A24: File Name: | D24: B43 | F24: Preliminary Title Report | L24: Provide a current preliminary report. | AE24: Attached and on USB?
A25: §401(a)(2) Assistance to persons who are experiencing or At risk of homelessness, including, but not limited to, through rapid rehousing, or rental assistance, or navigation centers, or new construction, rehabilitation, or preservation of permanent or transitional rental housing.
A26: §402 (c)(4) Does Applicant have site control? If yes, enter form of site control and most recent execution date.
A27: Form of site control: | Z27: Most recent document execution date:
A28: Provide details below for unusual site control special circumstances:
A30: File Name: | D30: C13 | F30: Site Control | L30: Provide documentation of the form of site control selected above meeting UMR §8303. | AE30: Attached and on USB?
A31: File Name: | D31: C14 | F31: Preliminary Title Report | L31: Provide a current preliminary report. | AE31: Attached and on USB?
A32: Selection Criteria, §403 | AE32: Total Points: | AJ32: =SUM(AK34,AK39) -> 0 | AP32: CA-512 | AQ32: Daly City/San Mateo County CoC | AR32: 627447
A33: (a) Applications submitted within a competitive funding round shall be evaluated using the following criteria. 100 Points Max. | AK33: Points
A34: (a)(1) Priority Points. 25 Points Max. | AK34: =SUM(AK35:AL36)+MAX(AK37,AK38) -> 0
A35: (a)(1)(A) Population – Is the Applicant a county that has a population of 200,000 or less within the unincorporated areas of the county? 5 Points. | AK35: =IF(AI35="Yes",5,0) -> 0
A36: (a)(1)(B ) Prior Award – Did the Applicant receive an award based on the formula specified in 42 USC, Section 5306 in 2016? | AK36: =IF(AI36="No",5,0) -> 0
A37: (a)(1)(C)(1) Assistance for Homeless Persons through Program Activities – Application will assist persons experiencing or At risk of homelessness, including but not limited to, through programs providing rapid rehousing, or rental assistance, or operating assistance to navigation centers? 15 Points; OR | AK37: =IF(AI37="Yes",15,0) -> 0
A38: (a)(1)(C )(2) Assistance for Homeless Persons through Rental Projects – Application is for the new construction, rehabilitation, or preservation of permanent or transitional rental housing in which all or at least 10% of the units are restricted to occupancy by tenants who are homeless or At risk of homelessness? 15 Points. | AK38: =IF(AI38="Yes",15,0) -> 0
A39: (a)(2) Evaluation Critera. 75 Points Max.
A40: (a)(2)(A) Community Need – Applicants will receive up to a maximum of 30 points based on the rate of households experiencing the most severe housing need according to the most recent HUD CHAS dataset in the Applicant Local government. Applicants will receive points in proportion to this percentage.
A41: (a)(2)(B ) Applicant Administrative Experience – Applicants with prior experience administering local, state or federal affordable housing or community development programs or who partner with an entity with prior experience in the implementation of local, state or federal affordable housing or community development programs will receive up to 15 points. | AI41: Yes
A42: (a)(2)(C) Demonstrated Capacity – 30 Points Max
A43: (i)(a) Sponsor experience in affordable housing development and ownership – 30 Points Max; OR
A44: (i)(b) Navigation center development experience (for development of these facilities) – 30 Points Max; OR
A45: (i)(c) Program Operator experience (for non-development Activities) – 30 Points Max
A46: Other Documents
A47: File Name: | D47: STD-204 | K47: Applicants that are not a government agency must submit a Payee Data Record (STD-204) | AE47: Attached and uploaded?
A48: File Name: | D48: Government TIN Form | K48: Applicants that are a government agency must submit a Government TIN Form | AE48: Attached and uploaded?
A49: File Name: | D49: Resolution | K49: Resolutions (Refer to Resolution Instructions and Sample Resolution on CESH Program website) | AE49: Attached and uploaded?
A50: Certifications
A51: On behalf of the entity identified below, I certify that: The information, statements and attachments included in this application are, to the best of my knowledge and belief, true and correct and I possess the legal authority to submit this application on behalf of the entity identified in the signature block.
A53: Authorized Representative Printed Name | O53: Title | U53: Signature | AK53: Date
A54: Entity name: | T54: Phone Number:
A55: Entity Address | V55: City | AC55: State | AH55: Zip

Sheet 302(c)(4) Plan
A1: §302(c)(4) Plan | AJ1: ='Formula Allocation Application'!AJ1:AL1 -> Rev. 10/19/20
A2: §302(c)(4)(A) Describe the manner in which allocated funds will be used for eligible activities.
A4: §302(c)(4)(B) Provide a description of the way the Local government will prioritize investments that increase the supply of housing for households with incomes at or below 60 percent of Area Median Income (AMI).
A6: §302(c)(4)(C) Provide a description of how the Plan is consistent with the programs set forth in the Local Government’s Housing Element.
A8: Activities Detail (Activities Detail (Must Make a Selection on Formula Allocation Application worksheet under Eligible Activities, §301))
A9: §301(a)(1) The predevelopment, development, acquisition, rehabilitation, and preservation of multifamily, residential live-work, rental housing that is affordable to extremely low-,very low-, low-, or moderate-income households, including necessary Operating subsidies.
A10: §302(c)(4)(E)(i) Provide a description of how allocated funds will be used for each proposed Affordable Rental Housing Activity.
A12: Complete the table below for each proposed Affordable Rental Housing Activity to be funded with 2019-2023 PLHA allocations. If a single Activity will be assisting households at more than one level of Area Median Income, please list the Activity as many times as needed to capture all of the AMI levels that will be assisted, but only show the percentage of annual funding allocated to the Activity one time (to avoid double counting).
A13: Funding Allocation Year
A14: §302(c)(4)(E)(i) Percentage of Funds Allocated for the Proposed Affordable Rental Housing Activity
A15: §302(c)(4)(E)(ii) Area Median Income Level Served | AJ15: TOTAL
A16: §302(c)(4)(E)(ii) Unmet share of the RHNA at the AMI Level Note: complete for year 2019 only | AJ16: =SUM(H16:AI16) -> 0
A17: §302(c)(4)(E)(ii) Projected Number of Households Served | AJ17: =SUM(H17:AH17) -> 0
A18: §302(c)(4)(E)(iv) Period of Affordability for the Proposed Affordable Rental Housing Activity (55 years required for rental housing projects) | H18: 55 Years | J18: 55 Years | L18: 55 Years | N18: 55 Years | P18: 55 Years | R18: 55 Years | T18: 55 Years | V18: 55 Years | X18: 55 Years | Z18: 55 Years | AB18: 55 Years | AD18: 55 Years | AF18: 55 Years | AH18: 55 Years
A19: §302(c)(4)(E)(iii) A description of major steps/actions and a proposed schedule for the implementation and completion of the Activity.
A21: §301(a)(2) The predevelopment, development, acquisition, rehabilitation, and preservation of Affordable rental and ownership housing, including Accessory Dwelling Units (ADUs), that meets the needs of a growing workforce earning up to 120 percent of AMI, or 150 percent of AMI in high-cost areas. ADUs shall be available for occupancy for a term of no less than 30 days.
A22: §302(c)(4)(E)(i) Provide a description of how allocated funds will be used for each proposed Affordable Rental and Ownership Housing Activity. | AA22: Percentage of Funds Allocated for Affordable Owner-occupied Workforce Housing
A24: Complete the table below for each proposed Affordable Rental and Ownership Housing Activity to be funded with 2019-2023 PLHA allocations. If a single Activity will be assisting households at more than one level of Area Median Income, please list the Activity as many times as needed to capture all of the AMI levels that will be assisted, but only show the percentage of annual funding allocated to the Activity one time (to avoid double counting).
A25: Funding Allocation Year
A26: Type of Affordable Housing Activity
A27: §302(c)(4)(E)(ii) Area Median Income Level Served | AJ27: TOTAL
A28: §302(c)(4)(E)(ii) Unmet share of the RHNA at AMI Level Note: complete for year 2019 only | AJ28: =SUM(H28:AI28) -> 0
A29: §302(c)(4)(E)(i) Percentage of Funds Allocated for Each Affordable Housing Activity
A30: §302(c)(4)(E)(ii) Projected Number of Households Served | AJ30: =SUM(H30:AH30) -> 0
A31: §302(c)(4)(E)(iv) Period of Affordability for the Proposed Activity (55 years required for rental housing projects)
A32: §302(c)(4)(E)(iii) A description of major steps/actions and a proposed schedule for the implementation and completion of each Affordable Rental and Ownership Housing project.
A34: §301(a)(3) Matching portions of funds placed into Local or Regional Housing Trust Funds.
A35: §302(c)(4)(E)(i) Provide a description of how allocated funds will be used for the proposed Activity. | AA35: Percentage of Funds Allocated for Affordable Owner-occupied Workforce Housing
A37: Complete the table below for each proposed Activity to be funded with 2019-2023 PLHA allocations. If a single Activity will be assisting households at more than one level of Area Median Income, please list the Activity as many times as needed to capture all of the AMI levels that will be assisted, but only show the percentage of annual funding allocated to the Activity one time (to avoid double counting).
A38: Funding Allocation Year
A39: Type of Affordable Housing Activity
A40: §302(c)(4)(E)(i) Percentage of Funds Allocated for the Proposed Activity
A41: §302(c)(4)(E)(ii) Area Median Income Level Served | AJ41: TOTAL
A42: §302(c)(4)(E)(ii) Unmet share of the RHNA at AMI Level Note: complete for year 2019 only | AJ42: =SUM(H42:AI42) -> 0
A43: §302(c)(4)(E)(ii) Projected Number of Households Served | AJ43: =SUM(H43:AH43) -> 0
A44: §302(c)(4)(E)(iv) Period of Affordability for the Proposed Activity (55 years required for rental housing projects)
A45: §302(c)(4)(E)(iii) A description of major steps/actions and a proposed schedule for the implementation and completion of the Activity.
A47: §301(a)(4) Matching portions of funds available through the Low- and Moderate-Income Housing Asset Fund pursuant to subdivision (d) of HSC Section 34176.
A48: §302(c)(4)(E)(i) Provide a description of how allocated funds will be used for the proposed Activity. | AA48: Percentage of Funds Allocated for Affordable Owner-occupied Workforce Housing
A50: Complete the table below for the proposed Activity to be funded with 2019-2023 PLHA allocations. If a single Activity will be assisting households at more than one level of Area Median Income, please list the Activity as many times as needed to capture all of the AMI levels that will be assisted, but only show the percentage of annual funding allocated to the Activity one time (to avoid double counting).
A51: Funding Allocation Year
A52: Type of Affordable Housing Activity
A53: §302(c)(4)(E)(i) Percentage of Funds Allocated for the Proposed Activity
A54: §302(c)(4)(E)(ii) Area Median Income Level Served | AJ54: TOTAL
A55: §302(c)(4)(E)(ii) Unmet share of the RHNA at AMI Level Note: complete for year 2019 only | AJ55: =SUM(H55:AI55) -> 0
A56: §302(c)(4)(E)(ii) Projected Number of Households Served | AJ56: =SUM(H56:AH56) -> 0
A57: §302(c)(4)(E)(iv) Period of Affordability for the Proposed Activity (55 years required for rental housing projects)
A58: §302(c)(4)(E)(iii) A description of major steps/actions and a proposed schedule for the implementation and completion of the Activity.
A60: §301(a)(5) Capitalized Reserves for Services connected to the preservation and creation of new permanent supportive housing.
A61: §302(c)(4)(E)(i) Provide a description of how allocated funds will be used for the proposed Activity .
A63: Complete the table below for each proposed Activity to be funded with 2019-2023 PLHA allocations. If a single Activity will be assisting households at more than one level of Area Median Income, please list the Activity as many times as needed to capture all of the AMI levels that will be assisted, but only show the percentage of annual funding allocated to the Activity one time (to avoid double counting).
A64: Funding Allocation Year
A65: Type of Permanent Supportive Housing Project
A66: §302(c)(4)(E)(i) Percentage of Funds Allocated for the Proposed Activity
A67: §302(c)(4)(E)(ii) Area Median Income Level Served | AJ67: TOTAL
A68: §302(c)(4)(E)(ii) Unmet share of the RHNA at AMI Level Note: complete for year 2019 only | AJ68: =SUM(H68:AH68) -> 0
A69: §302(c)(4)(E)(ii) Projected Number of Households Served | AJ69: =SUM(H69:AH69) -> 0
A70: §302(c)(4)(E)(iv) Period of Affordability for the Proposed Activity (55 years required for rental housing projects)
A71: §302(c)(4)(E)(iii) A description of major steps/actions and a proposed schedule for the implementation and completion of the Activity.
A73: §301(a)(6) Assisting persons who are experiencing or At risk of homelessness, including, but not limited to, providing rapid rehousing, rental assistance, supportive/case management services that allow people to obtain and retain housing, operating and capital costs for navigation centers and emergency shelters, and the new construction, rehabilitation, and preservation of permanent and transitional housing.
A74: §302(c)(4)(E)(i) Provide a description of how allocated funds will be used for the proposed Activity.
A76: Complete the table below for each proposed Activity to be funded with 2019-2023 PLHA allocations. If a single Activity will be assisting households at more than one level of Area Median Income, please list the Activity as many times as needed to capture all of the AMI levels that will be assisted, but only show the percentage of annual funding allocated to the Activity one time (to avoid double counting).
A77: Funding Allocation Year
A78: Type of Activity for Persons Experiencing or At Risk of Homelessness
A79: §302(c)(4)(E)(i) Percentage of Funds Allocated for the Proposed Activity
A80: §302(c)(4)(E)(ii) Area Median Income Level Served | AJ80: TOTAL
A81: §302(c)(4)(E)(ii) Unmet share of the RHNA at AMI Level Note: complete for year 2019 only | AJ81: =SUM(H81:AI81) -> 0
A82: §302(c)(4)(E)(ii) Projected Number of Households Served | AJ82: =SUM(H82:AH82) -> 0
A83: §302(c)(4)(E)(iv) Period of Affordability for the Proposed Activity (55 years required for rental housing projects)
A84: §302(c)(4)(E)(iii) A description of major steps/actions and a proposed schedule for the implementation and completion of the Activity.
A86: §301(a)(7) Accessibility modifications in Lower-income Owner-occupied housing.
A87: §302(c)(4)(E)(i) Provide a description of how allocated funds will be used for the proposed Activity. | AA87: Percentage of Funds Allocated for Affordable Owner-occupied Workforce Housing
A89: Complete the table below for each proposed Activity to be funded with 2019-2023 PLHA allocations. If a single Activity will be assisting households at more than one level of Area Median Income, please list the Activity as many times as needed to capture all of the AMI levels that will be assisted, but only show the percentage of annual funding allocated to the Activity one time (to avoid double counting).
A90: Funding Allocation Year
A91: §302(c)(4)(E)(i) Percentage of Funds Allocated for the Proposed Activity
A92: §302(c)(4)(E)(ii) Area Median Income Level Served | AJ92: TOTAL
A93: §302(c)(4)(E)(ii) Unmet share of the RHNA at AMI Level Note: complete for year 2019 only | AJ93: =SUM(H93:AI93) -> 0
A94: §302(c)(4)(E)(ii) Projected Number of Households Served | AJ94: =SUM(H94:AH94) -> 0
A95: §302(c)(4)(E)(iv) Period of Affordability for the Proposed Activity
A96: §302(c)(4)(E)(iii) A description of major steps/actions and a proposed schedule for the implementation and completion of the Activity.
A98: §301(a)(8) Efforts to acquire and rehabilitate foreclosed or vacant homes and apartments.
A99: §302(c)(4)(E)(i) Provide a description of how allocated funds will be used for the proposed Activity. | AA99: Percentage of Funds Allocated for Affordable Owner-occupied Workforce Housing (AOWH)
A101: Complete the table below for each proposed Activity to be funded with 2019-2023 PLHA allocations. If a single Activity will be assisting households at more than one level of Area Median Income, please list the Activity as many times as needed to capture all of the AMI levels that will be assisted, but only show the percentage of annual funding allocated to the Activity one time (to avoid double counting).
A102: Funding Allocation Year
A103: Type of Activity
A104: §302(c)(4)(E)(i) Percentage of Funds Allocated for the Proposed Activity
A105: §302(c)(4)(E)(ii) Area Median Income Level Served | AJ105: TOTAL
A106: §302(c)(4)(E)(ii) Unmet share of the RHNA at AMI Level Note: complete for year 2019 only | AJ106: =SUM(H106:AI106) -> 0
A107: §302(c)(4)(E)(ii) Projected Number of Households Served | AJ107: =SUM(H107:AH107) -> 0
A108: §302(c)(4)(E)(iv) Period of Affordability for the Proposed Activity (55 years required for rental housing projects)
A109: §302(c)(4)(E)(iii) A description of major steps/actions and a proposed schedule for the implementation and completion of the Activity.
A111: §301(a)(9) Homeownership opportunities, including, but not limited to, down payment assistance.
A112: §302(c)(4)(E)(i) Provide a description of how allocated funds will be used for the proposed Activity. | AA112: Percentage of Funds Allocated for Affordable Owner-occupied Workforce Housing (AOWH)
A114: Complete the table below for each proposed Activity to be funded with 2019-2023 PLHA allocations. If a single Activity will be assisting households at more than one level of Area Median Income, please list the Activity as many times as needed to capture all of the AMI levels that will be assisted, but only show the percentage of annual funding allocated to the Activity one time (to avoid double counting).
A115: Funding Allocation Year
A116: Type of Homeowner Assistance
A117: §302(c)(4)(E)(i) Percentage of Funds Allocated for the Proposed Activity
A118: §302(c)(4)(E)(ii) Area Median Income Level Served | AJ118: TOTAL
A119: §302(c)(4)(E)(ii) Unmet share of the RHNA at AMI Level Note: complete for year 2019 only | AJ119: =SUM(H119:AI119) -> 0
A120: §302(c)(4)(E)(ii) Projected Number of Households Served | AJ120: =SUM(H120:AH120) -> 0
A121: §302(c)(4)(E)(iv) Period of Affordability for the Proposed Activity
A122: §302(c)(4)(E)(iii) A description of major steps/actions and a proposed schedule for the implementation and completion of the Activity.
A124: §301(a)(10) Fiscal incentives made by a county to a city within the county to incentivize approval of one or more affordable housing Projects, or matching funds invested by a county in an affordable housing development Project in a city within the county, provided that the city has made an equal or greater investment in the Project. The county fiscal incentives shall be in the form of a grant or low-interest loan to an affordable housing Project. Matching funds investments by both the county and the city also shall be a grant or low-interest deferred loan to the affordable housing Project.
A125: §302(c)(4)(E)(i) Provide a description of how allocated funds will be used for the proposed Activity. | AA125: Percentage of Funds Allocated for Affordable Owner-occupied Workforce Housing (AOWH)
A127: Complete the table below for each proposed Activity to be funded with 2019-2023 PLHA allocations. If a single Activity will be assisting households at more than one level of Area Median Income, please list the Activity as many times as needed to capture all of the AMI levels that will be assisted, but only show the percentage of annual funding allocated to the Activity one time (to avoid double counting).
A128: Funding Allocation Year
A129: Type of Activity
A130: Type of Affordable Housing Project | AM130: Fiscal Incentives
A131: §302(c)(4)(E)(i) Percentage of Funds Allocated for the Proposed Activity
A132: §302(c)(4)(E)(ii) Area Median Income Level Served | AJ132: TOTAL
A133: §302(c)(4)(E)(ii) Unmet share of the RHNA at AMI Level Note: complete for year 2019 only | AJ133: =SUM(H133:AI133) -> 0
A134: §302(c)(4)(E)(ii) Projected Number of Households Served | AJ134: =SUM(H134:AH134) -> 0
A135: §302(c)(4)(E)(iv) Period of Affordability for the Proposed Activity (55 years required for rental housing projects)
A136: §302(c)(4)(E)(iii) A description of major steps/actions and a proposed schedule for the implementation and completion of the Activity.
A138: File Name: | D138: Plan Adoption Reso | L138: §302(c)(4)(D) Evidence that the Plan was authorized and adopted by resolution by the Local jurisdiction and that the public had an adequate opportunity to review and comment on its content. | AE138: Uploaded to HCD?

Sheet Legislative Contacts
A1: Legislative and Congressional Information | AJ1: ='Formula Allocation Application'!AJ1 -> Rev. 10/19/20
A2: Provide the Legislative and Congressional information for the applicant and each activity location, (if different than applicant location), included in this application.
A3: To locate or verify the Legislative and Congressional information, click on the respective links below and enter the applicant office location zip code, the activity location site zip code(s) (i.e. zip code(s) where activities are performed), and any additional activity location site(s), as applicable.
A4: California State Assembly | M4: California State Senate | Z4: U.S. House of Representatives
A5: Applicant Office Location
H6: District # | P6: First Name | Y6: Last Name
A7: State Assembly Member
A8: State Senate Member
A9: U.S. House of Representatives
A10: Activity Location 1 (if different from applicant location)
H11: District # | P11: First Name | Y11: Last Name
A12: State Assembly Member
A13: State Senate Member
A14: U.S. House of Representatives
A15: Activity Location 2 (if different from applicant location)
H16: District # | P16: First Name | Y16: Last Name
A17: State Assembly Member
A18: State Senate Member
A19: U.S. House of Representatives
A20: Activity Location 3 (if different from applicant location)
H21: District # | P21: First Name | Y21: Last Name
A22: State Assembly Member
A23: State Senate Member
A24: U.S. House of Representatives
A25: Activity Location 4 (if different from applicant location)
H26: District # | P26: First Name | Y26: Last Name
A27: State Assembly Member
A28: State Senate Member
A29: U.S. House of Representatives
A30: Activity Location 5 (if different from applicant location)
H31: District # | P31: First Name | Y31: Last Name
A32: State Assembly Member
A33: State Senate Member
A34: U.S. House of Representatives
A35: Activity Location 6 (if different from applicant location)
H36: District # | P36: First Name | Y36: Last Name
A37: State Assembly Member
A38: State Senate Member
A39: U.S. House of Representatives
A40: Activity Location 7 (if different from applicant location)
H41: District # | P41: First Name | Y41: Last Name
A42: State Assembly Member
A43: State Senate Member
A44: U.S. House of Representatives
A45: Activity Location 8 (if different from applicant location)
H46: District # | P46: First Name | Y46: Last Name
A47: State Assembly Member
A48: State Senate Member
A49: U.S. House of Representatives
A50: Activity Location 9 (if different from applicant location)
H51: District # | P51: First Name | Y51: Last Name
A52: State Assembly Member
A53: State Senate Member
A54: U.S. House of Representatives
A55: Activity Location 10 (if different from applicant location)
H56: District # | P56: First Name | Y56: Last Name
A57: State Assembly Member
A58: State Senate Member
A59: U.S. House of Representatives
A60: Activity Location 11 (if different from applicant location)
H61: District # | P61: First Name | Y61: Last Name
A62: State Assembly Member
A63: State Senate Member
A64: U.S. House of Representatives
A65: Activity Location 12 (if different from applicant location)
H66: District # | P66: First Name | Y66: Last Name
A67: State Assembly Member
A68: State Senate Member
A69: U.S. House of Representatives
A70: Activity Location 13 (if different from applicant location)
H71: District # | P71: First Name | Y71: Last Name
A72: State Assembly Member
A73: State Senate Member
A74: U.S. House of Representatives
A75: Activity Location 14 (if different from applicant location)
H76: District # | P76: First Name | Y76: Last Name
A77: State Assembly Member
A78: State Senate Member
A79: U.S. House of Representatives
A80: Activity Location 15 (if different from applicant location)
H81: District # | P81: First Name | Y81: Last Name
A82: State Assembly Member
A83: State Senate Member
A84: U.S. House of Representatives
A85: Activity Location 16 (if different from applicant location)
H86: District # | P86: First Name | Y86: Last Name
A87: State Assembly Member
A88: State Senate Member
A89: U.S. House of Representatives
A90: Activity Location 17 (if different from applicant location)
H91: District # | P91: First Name | Y91: Last Name
A92: State Assembly Member
A93: State Senate Member
A94: U.S. House of Representatives
A95: Activity Location 18 (if different from applicant location)
H96: District # | P96: First Name | Y96: Last Name
A97: State Assembly Member
A98: State Senate Member
A99: U.S. House of Representatives
A100: Activity Location 20 (if different from applicant location)
H101: District # | P101: First Name | Y101: Last Name
A102: State Assembly Member
A103: State Senate Member
A104: U.S. House of Representatives
A105: Activity Location 21 (if different from applicant location)
H106: District # | P106: First Name | Y106: Last Name
A107: State Assembly Member
A108: State Senate Member
A109: U.S. House of Representatives
A110: Activity Location 22 (if different from applicant location)
H111: District # | P111: First Name | Y111: Last Name
A112: State Assembly Member
A113: State Senate Member
A114: U.S. House of Representatives
A115: Activity Location 23 (if different from applicant location)
H116: District # | P116: First Name | Y116: Last Name
A117: State Assembly Member
A118: State Senate Member
A119: U.S. House of Representatives
A120: Activity Location 24 (if different from applicant location)
H121: District # | P121: First Name | Y121: Last Name
A122: State Assembly Member
A123: State Senate Member
A124: U.S. House of Representatives
A125: Activity Location 25 (if different from applicant location)
H126: District # | P126: First Name | Y126: Last Name
A127: State Assembly Member
A128: State Senate Member
A129: U.S. House of Representatives

Sheet Appplication Support
A1: Application Development Team (ADT) Support Form | AJ1: ='Formula Allocation Application'!AJ1 -> Rev. 10/19/20
A2: Please complete the "yellow" cells in the form below and email a copy to: AppSupport@hcd.ca.gov. and PLHA@hcd.ca.gov. A member of the Application Development Team will respond to your request within ASAP.
A3: Full Name: | W3: Date Requested: | AE3: Application Version Date:
A4: Organization: | P4: Email: | AC4: Contact Phone:
A5: Justification:
A6: Issue # | C6: Program Name & Round | F6: Tab | J6: Section | P6: Cell# | R6: Update/Comment | AD6: Urgency | AG6: ADT Status | AJ6: Status Date | AM6: Requestor | AN6: Email | AO6: Phone | AP6: App Version
A7: 1 | AM7: =IF(C7="","",$D$3) ->  | AN7: =IF(C7="","",$R$4) ->  | AO7: =IF(C7="","",$AG$4) ->  | AP7: =IF(C7="","",$AI$3) -> 
A8: 2 | AO8: =IF(C8="","",$AG$4) ->  | AP8: =IF(C8="","",$AI$3) -> 
A9: 3 | AO9: =IF(C9="","",$AG$4) ->  | AP9: =IF(C9="","",$AI$3) -> 
A10: 4 | AO10: =IF(C10="","",$AG$4) ->  | AP10: =IF(C10="","",$AI$3) -> 
A11: 5 | AO11: =IF(C11="","",$AG$4) ->  | AP11: =IF(C11="","",$AI$3) -> 
A12: 6
A13: 7
A14: 8
A15: 9
A16: 10
A17: 11
A18: 12
A19: 13
A20: 14
A21: 15
A22: 16
A23: 17
A24: 18
A25: 19
A26: 20
A27: 21
A28: 22
A29: 23
A30: 24
A31: 25

Sheet Formula (hidden)
C1: Appendix A - Preliminary PLHA Allocations - CA
C2: Estimated Building Homes and Jobs Trust Fund (BHJTF) Subject to Change Based on 2019-20 Budget Act | L2: 316386439.5
K3: 30 % for Special Programs | L3: =L2*0.3 -> 94915931.85
K4: PLHA | L4: =L2*0.7 -> 221470507.7
C5: 5% State Admin. | L5: =L4*0.05 -> 11073525.38
C6: PLHA NOFA Amount | L6: =L4-L5 -> 210396982.3
C7: PHLA Program Subcomponents
C8: Subcomponent | K8: Estimated Funding Amount | L8: Estimated % of PHLA Funds
C9: 90% for Formula Allocation to Entitlement Jurisdictions and Competitive Non-Entitlement | K9: =L6*0.9 -> 189357284 | L9: 0.9
C10: Competitive Non-Entitlement Allocation | K10: =K201 -> 14585061.67 | L10: =K10/$K$9 -> 0.07702403287
C11: Formula Entitlement Allocation | J11: Entitlement Subtotal | K11: =K9-K10 -> 174772222.4 | L11: =K11/$K$9 -> 0.9229759671
C12: 10% for Formula Allocation to Non-Entitlement Jurisdictions | K12: =L6*0.1 -> 21039698.23 | L12: =K12/$L$6 -> 0.1
C13: LOCAL GOVERNMENT | D13: STATE | E13: 2017 CDBG Allocation | J13: Percentage of Total 2017 CA CDBG Allocations | K13: Estimated Allocation From SB 2 Formula Allocation | L13: Allowable Local Admin (5%)
C14: Alameda | D14: CA | E14: 1053123 | J14: =E14/SUM($E$14:$E$201) -> 0.002950850377 | K14: =J14*$K$9 -> 558765.013 | L14: =K14*0.05 -> 27938.25065 | M14: =ROUNDDOWN(K14,0) -> 558765
C15: Alhambra | D15: CA | E15: 877586 | J15: 0.002458995748 | K15: =J15*$K$9 -> 465628.7563 | L15: 23281.43782 | M15: =ROUNDDOWN(K15,0) -> 465628
C16: Aliso Viejo | D16: CA | E16: 224618 | J16: 0.0006293795786 | K16: 119177.6076 | L16: 5958.880382 | M16: 119177
C17: Anaheim | D17: CA | E17: 4062139 | J17: 0.01138211244 | K17: 2155285.899 | L17: 107764.2949 | M17: 2155285
C18: Antioch | D18: CA | E18: 743029 | J18: 0.002081967068 | K18: 394235.6295 | L18: 19711.78148 | M18: 394235
C19: Apple Valley | D19: CA | E19: 541977 | J19: 0.001518619416 | K19: 287561.648 | L19: 14378.0824 | M19: 287561
C20: Bakersfield | D20: CA | E20: 3262290 | J20: 0.009140935747 | K20: 1730902.767 | L20: 86545.13833 | M20: 1730902
C21: Baldwin Park | D21: CA | E21: 920087 | J21: 0.002578083539 | K21: 488178.897 | L21: 24408.94485 | M21: 488178
C22: Bellflower | D22: CA | E22: 968046 | J22: 0.002712464645 | K22: 513624.9382 | L22: 25681.24691 | M22: 513624
C23: Berkeley | D23: CA | E23: 2438062 | J23: 0.006831449101 | K23: 1293584.648 | L23: 64679.2324 | M23: 1293584
C24: Buena Park | D24: CA | E24: 695924 | J24: 0.00194997887 | K24: 369242.7028 | L24: 18462.13514 | M24: 369242
C25: Burbank | D25: CA | E25: 899361 | J25: 0.002520009292 | K25: 477182.1154 | L25: 23859.10577 | M25: 477182
C26: Camarillo | D26: CA | E26: 255107 | J26: 0.0007148097489 | K26: 135354.4327 | L26: 6767.721633 | M26: 135354
C27: Carlsbad | D27: CA | E27: 513746 | J27: 0.001439516161 | K27: 272582.8706 | L27: 13629.14353 | M27: 272582
C28: Carson | D28: CA | E28: 781656 | J28: 0.002190199912 | K28: 414730.3069 | L28: 20736.51535 | M28: 414730
C29: Cathedral City | D29: CA | E29: 533801 | J29: 0.001495710266 | K29: 283223.6336 | L29: 14161.18168 | M29: 283223
C30: Cerritos | D30: CA | E30: 205838 | J30: 0.0005767580234 | K30: 109213.3329 | L30: 5460.666644 | M30: 109213
C31: Chico | D31: CA | E31: 735702 | J31: 0.002061436816 | K31: 390348.0767 | L31: 19517.40384 | M31: 390348
C32: Chino | D32: CA | E32: 469987 | J32: 0.001316903454 | K32: 249365.2614 | L32: 12468.26307 | M32: 249365
C33: Chino Hills | D33: CA | E33: 334136 | J33: 0.0009362489867 | K33: 177285.5653 | L33: 8864.278265 | M33: 177285
C34: Chula Vista | D34: CA | E34: 1996844 | J34: 0.005595156378 | K34: 1059483.616 | L34: 52974.18078 | M34: 1059483
C35: Citrus Heights | D35: CA | E35: 589469 | J35: 0.001651691987 | K35: 312759.9088 | L35: 15637.99544 | M35: 312759
C36: Clovis City | D36: CA | E36: 689077 | J36: 0.001930793578 | K36: 365609.828 | L36: 18280.4914 | M36: 365609
C37: Compton | D37: CA | E37: 1450717 | J37: 0.004064908664 | K37: 769720.0644 | L37: 38486.00322 | M37: 769720
C38: Concord | D38: CA | E38: 921231 | J38: 0.002581289027 | K38: 488785.8794 | L38: 24439.29397 | M38: 488785
C39: Corona | D39: CA | E39: 1096921 | J39: 0.003073572362 | K39: 582003.3148 | L39: 29100.16574 | M39: 582003
C40: Costa Mesa | D40: CA | E40: 996235 | J40: 0.002791450216 | K40: 528581.4314 | L40: 26429.07157 | M40: 528581
C41: Cupertino City | D41: CA | E41: 311943 | J41: 0.0008740642063 | K41: 165510.4242 | L41: 8275.52121 | M41: 165510
C42: Daly City | D42: CA | E42: 964647 | J42: 0.002702940648 | K42: 511821.5 | L42: 25591.075 | M42: 511821
C43: Davis | D43: CA | E43: 570931 | J43: 0.001599748516 | K43: 302924.0342 | L43: 15146.20171 | M43: 302924
C44: Delano City | D44: CA | E44: 612773 | J44: 0.00171698979 | K44: 325124.5233 | L44: 16256.22616 | M44: 325124
C45: Downey | D45: CA | E45: 980589 | J45: 0.002747610128 | K45: 520279.9914 | L45: 26013.99957 | M45: 520279
C46: El Cajon | D46: CA | E46: 1216373 | J46: =E46/SUM($E$14:$E$201) -> 0.003408276835 | K46: 645382.0448 | L46: 32269.10224 | M46: 645382
C47: El Centro | D47: CA | E47: 463642 | J47: 0.001299124766 | K47: 245998.7373 | L47: 12299.93686 | M47: 245998
C48: Elk Grove | D48: CA | E48: 828882 | J48: 0.002322527152 | K48: 439787.4337 | L48: 21989.37168 | M48: 439787
C49: El Monte | D49: CA | E49: 1596920 | J49: 0.004474569432 | K49: 847292.315 | L49: 42364.61575 | M49: 847292
C50: Encinitas | D50: CA | E50: 294102 | J50: 0.0008240737289 | K50: 156044.3632 | L50: 7802.218158 | M50: 156044
C51: Escondido | D51: CA | E51: 1588664 | J51: 0.004451436122 | K51: 842911.8542 | L51: 42145.59271 | M51: 842911
C52: Fairfield | D52: CA | E52: 736762 | J52: 0.002064406936 | K52: 390910.4905 | L52: 19545.52453 | M52: 390910
C53: Fontana | D53: CA | E53: 1849155 | J53: 0.005181331838 | K53: 981122.9246 | L53: 49056.14623 | M53: 981122
C54: Fountain Valley | D54: CA | E54: 272549 | J54: 0.0007636822284 | K54: 144608.7926 | L54: 7230.439632 | M54: 144608
C55: Fremont | D55: CA | E55: 1208416 | J55: 0.003385981323 | K55: 641160.2272 | L55: 32058.01136 | M55: 641160
C56: Fresno | D56: CA | E56: 6422423 | J56: 0.01799562761 | K56: 3407603.168 | L56: 170380.1584 | M56: 3407603
C57: Fullerton | D57: CA | E57: 1297550 | J57: 0.003635734769 | K57: 688452.8613 | L57: 34422.64307 | M57: 688452
C58: Gardena | D58: CA | E58: 621732 | J58: 0.001742092905 | K58: 329877.9811 | L58: 16493.89905 | M58: 329877
C59: Garden Grove | D59: CA | E59: 1874072 | J59: 0.005251149265 | K59: 994343.363 | L59: 49717.16815 | M59: 994343
C60: Gilroy City | D60: CA | E60: 460364 | J60: 0.00128993981 | K60: 244259.4991 | L60: 12212.97495 | M60: 244259
C61: Glendale | D61: CA | E61: 1634112 | J61: 0.004578781407 | K61: 867025.6114 | L61: 43351.28057 | M61: 867025
C62: Glendora City | D62: CA | E62: 245502 | J62: 0.0006878965413 | K62: 130258.2208 | L62: 6512.911038 | M62: 130258
C63: Goleta | D63: CA | E63: 177194 | J63: 0.0004964975428 | K63: 94015.42623 | L63: 4700.771312 | M63: 94015
C64: Hanford | D64: CA | E64: 556879 | J64: 0.001560374816 | K64: 295468.3372 | L64: 14773.41686 | M64: 295468
C65: Hawthorne | D65: CA | E65: 1155001 | J65: 0.003236312507 | K65: 612819.3467 | L65: 30640.96733 | M65: 612819
C66: Hayward | D66: CA | E66: 1228347 | J66: 0.00344182798 | K66: 651735.1985 | L66: 32586.75993 | M66: 651735
C67: Hemet | D67: CA | E67: 758673 | J67: 0.002125801552 | K67: 402536.0084 | L67: 20126.80042 | M67: 402536
C68: Hesperia | D68: CA | E68: 953256 | J68: 0.002671023069 | K68: 505777.6739 | L68: 25288.88369 | M68: 505777
C69: Huntington Beach | D69: CA | E69: 1033767 | J69: 0.00289661487 | K69: 548495.1247 | L69: 27424.75624 | M69: 548495
C70: Huntington Park | D70: CA | E70: 1228240 | J70: 0.003441528166 | K70: 651678.4266 | L70: 32583.92133 | M70: 651678
C71: Indio City | D71: CA | E71: 859367 | J71: 0.002407946115 | K71: 455962.1364 | L71: 22798.10682 | M71: 455962
C72: Inglewood | D72: CA | E72: 1386743 | J72: 0.003885653532 | K72: 735776.7995 | L72: 36788.83998 | M72: 735776
C73: Irvine | D73: CA | E73: 1428585 | J73: 0.004002894805 | K73: 757977.2886 | L73: 37898.86443 | M73: 757977
C74: Laguna Niguel | D74: CA | E74: 289146 | J74: 0.0008101870182 | K74: 153414.8133 | L74: 7670.740667 | M74: 153414
C75: La Habra | D75: CA | E75: 732911 | J75: 0.002053616435 | K75: 388867.2306 | L75: 19443.36153 | M75: 388867
C76: Lake Forest | D76: CA | E76: 416658 | J76: 0.00116747561 | K76: 221070.0106 | L76: 11053.50053 | M76: 221070
C77: Lake Elsinore | D77: CA | E77: 468408 | J77: 0.001312479096 | K77: 248527.4771 | L77: 12426.37385 | M77: 248527
C78: Lakewood | D78: CA | E78: 510476 | J78: =E78/SUM($E$14:$E$201) -> 0.001430353622 | K78: 270847.877 | L78: =K78*0.05 -> 13542.39385 | M78: 270847
C79: La Mesa | D79: CA | E79: 355856 | J79: 0.0009971084211 | K79: =J79*$K$9 -> 188809.7425 | L79: 9440.487126 | M79: =ROUNDDOWN(K79,0) -> 188809
C80: Lancaster | D80: CA | E80: 1309617 | J80: 0.0036695465 | K80: 694855.3588 | L80: 34742.76794 | M80: 694855
C81: Livermore | D81: CA | E81: 393044 | J81: 0.001101309188 | K81: 208540.9167 | L81: 10427.04583 | M81: 208540
C82: Lodi | D82: CA | E82: 633771 | J82: 0.00177582618 | K82: 336265.6224 | L82: 16813.28112 | M82: 336265
C83: Lompoc | D83: CA | E83: 427887 | J83: 0.001198939265 | K83: 227027.8829 | L83: 11351.39415 | M83: 227027
C84: Long Beach | D84: CA | E84: 5516208 | J84: 0.01545641341 | K84: 2926784.464 | L84: 146339.2232 | M84: 2926784
C85: Los Angeles | D85: CA | E85: 49416902 | J85: 0.1384661468 | K85: 26219573.49 | L85: 1310978.674 | M85: 26219573
C86: Lynwood | D86: CA | E86: 1189997 | J86: 0.00333437129 | K86: 631387.4915 | L86: 31569.37458 | M86: 631387
C87: Madera | D87: CA | E87: 795959 | J87: 0.002230276915 | K87: 422319.1793 | L87: 21115.95896 | M87: 422319
C88: Menifee | D88: CA | E88: 474207 | J88: 0.001328727893 | K88: 251604.305 | L88: 12580.21525 | M88: 251604
C89: Merced | D89: CA | E89: 977648 | J89: 0.002739369446 | K89: 518719.5584 | L89: 25935.97792 | M89: 518719
C90: Milpitas City | D90: CA | E90: 449688 | J90: 0.001260025661 | K90: 238595.037 | L90: 11929.75185 | M90: 238595
C91: Mission Viejo | D91: CA | E91: 389544 | J91: 0.001091502189 | K91: 206683.89 | L91: 10334.1945 | M91: 206683
C92: Modesto | D92: CA | E92: 1827715 | J92: 0.005121256963 | K92: 969747.3095 | L92: 48487.36547 | M92: 969747
C93: Montebello | D93: CA | E93: 597005 | J93: 0.001672807858 | K93: 316758.3526 | L93: 15837.91763 | M93: 316758
C94: Monterey | D94: CA | E94: 219420 | J94: 0.000614814784 | K94: 116419.6577 | L94: 5820.982884 | M94: 116419
C95: Monterey Park | D95: CA | E95: 600988 | J95: 0.001683968223 | K95: 318871.649 | L95: 15943.58245 | M95: 318871
C96: Moreno Valley | D96: CA | E96: 1940916 | J96: 0.005438446136 | K96: 1029809.39 | L96: 51490.46949 | M96: 1029809
C97: Mountain View | D97: CA | E97: 483532 | J97: 0.001354856541 | K97: 256551.9548 | L97: 12827.59774 | M97: 256551
C98: Napa City | D98: CA | E98: 599742 | J98: 0.001680476931 | K98: 318210.5475 | L98: 15910.52738 | M98: 318210
C99: National City | D99: CA | E99: 741061 | J99: 0.002076452733 | K99: 393191.4499 | L99: 19659.5725 | M99: 393191
C100: Newport Beach | D100: CA | E100: 319676 | J100: 0.0008957320704 | K100: 169613.3921 | L100: 8480.669604 | M100: 169613
C101: Norwalk | D101: CA | E101: 1117199 | J101: 0.003130391313 | K101: 592762.397 | L101: 29638.11985 | M101: 592762
C102: Oakland | D102: CA | E102: 6981948 | J102: 0.01956341651 | K102: 3704475.418 | L102: 185223.7709 | M102: 3704475
C103: Oceanside | D103: CA | E103: 1223477 | J103: 0.003428182242 | K103: 649151.2785 | L103: 32457.56392 | M103: 649151
C104: Ontario | D104: CA | E104: 1733990 | J104: 0.004858639537 | K104: 920018.7869 | L104: 46000.93935 | M104: 920018
C105: Orange | D105: CA | E105: 1144944 | J105: 0.003208132796 | K105: 607483.313 | L105: 30374.16565 | M105: 607483
C106: Oxnard | D106: CA | E106: 2183330 | J106: 0.006117690103 | K106: 1158429.182 | L106: 57921.45912 | M106: 1158429
C107: Palmdale | D107: CA | E107: 1468328 | J107: 0.004114254681 | K107: 779064.0923 | L107: 38953.20461 | M107: 779064
C108: Palm Desert | D108: CA | E108: 322867 | J108: 0.0009046732516 | K108: 171306.4699 | L108: 8565.323493 | M108: 171306
C109: Palm Springs | D109: CA | E109: 362316 | J109: 0.001015209339 | K109: 192237.2833 | L109: 9611.864163 | M109: 192237
C110: Palo Alto | D110: CA | E110: 436309 | J110: 0.001222537707 | K110: 231496.4198 | L110: 11574.82099 | M110: 231496
C111: Paradise | D111: CA | E111: 176404 | J111: 0.000494283963 | K111: 93596.26877 | L111: 4679.813439 | M111: 93596
C112: Paramount City | D112: CA | E112: 825885 | J112: 0.002314129559 | K112: 438197.2882 | L112: 21909.86441 | M112: 438197
C113: Pasadena | D113: CA | E113: 1764254 | J113: 0.004943439258 | K113: 936076.2317 | L113: 46803.81158 | M113: 936076
C114: Perris City | D114: CA | E114: 879290 | J114: 0.002463770355 | K114: 466532.863 | L114: 23326.64315 | M114: 466532
C115: Petaluma | D115: CA | E115: 347465 | J115: 0.0009735968413 | K115: 184357.6536 | L115: 9217.882681 | M115: 184357
C116: Pico Rivera | D116: CA | E116: 638875 | J116: 0.001790127587 | K116: 338973.6979 | L116: 16948.6849 | M116: 338973
C117: Pittsburg | D117: CA | E117: 598748 | J117: 0.001677691743 | K117: 317683.1519 | L117: 15884.1576 | M117: 317683
C118: Placentia | D118: CA | E118: 404792 | J118: 0.001134227081 | K118: 214774.1595 | L118: 10738.70797 | M118: 214774
C119: Pleasanton City | D119: CA | E119: 284763 | J119: 0.0007979058533 | K119: 151089.2853 | L119: 7554.464265 | M119: 151089
C120: Pomona | D120: CA | E120: 2013735 | J120: 0.005642484956 | K120: 1068445.627 | L120: 53422.28133 | M120: 1068445
C121: Porterville | D121: CA | E121: 646000 | J121: 0.001810091835 | K121: 342754.0738 | L121: 17137.70369 | M121: 342754
C122: Rancho Cordova City | D122: CA | E122: 537840 | J122: 0.001507027543 | K122: 285366.6425 | L122: 14268.33212 | M122: 285366
C123: Rancho Cucamonga | D123: CA | E123: 849028 | J123: 0.002378976239 | K123: 450476.4795 | L123: 22523.82397 | M123: 450476
C124: Rancho Santa Margarita | D124: CA | E124: 191106 | J124: 0.0005354789632 | K124: 101396.8421 | L124: 5069.842107 | M124: 101396
C125: Redding | D125: CA | E125: 634805 | J125: 0.001778723448 | K125: 336814.2412 | L125: 16840.71206 | M125: 336814
C126: Redondo Beach | D126: CA | E126: 246581 | J126: 0.000690919899 | K126: 130830.7156 | L126: 6541.535779 | M126: 130830
C127: Redwood City | D127: CA | E127: 655358 | J127: 0.001836312949 | K127: 347719.2326 | L127: 17385.96163 | M127: 347719
C128: Rialto | D128: CA | E128: 1126668 | J128: 0.003156923448 | K128: 597786.4501 | L128: 29889.32251 | M128: 597786
C129: Riverside | D129: CA | E129: 3057274 | J129: 0.008566480967 | K129: 1622125.57 | L129: 81106.27849 | M129: 1622125
C130: Rocklin City | D130: CA | E130: 253758 | J130: 0.0007110298512 | K130: 134638.6815 | L130: 6731.934075 | M130: 134638
C131: Rosemead | D131: CA | E131: 646913 | J131: 0.001812650061 | K131: 343238.4924 | L131: 17161.92462 | M131: 343238
C132: Roseville | D132: CA | E132: 590613 | J132: 0.001654897475 | K132: 313366.8913 | L132: 15668.34456 | M132: 313366
C133: Sacramento | D133: CA | E133: 4442443 | J133: 0.01244772415 | K133: 2357067.238 | L133: 117853.3619 | M133: 2357067
C134: Salinas | D134: CA | E134: 1897639 | J134: 0.005317183993 | K134: 1006847.52 | L134: 50342.37599 | M134: 1006847
C135: San Bernardino | D135: CA | E135: 3057089 | J135: 0.008565962597 | K135: 1622027.413 | L135: 81101.37063 | M135: 1622027
C136: San Clemente | D136: CA | E136: 356291 | J136: 0.000998327291 | K136: 189040.5444 | L136: 9452.027221 | M136: 189040
C137: San Diego | D137: CA | E137: 10912952 | J137: 0.03057808872 | K137: 5790183.831 | L137: 289509.1915 | M137: 5790183
C138: San Francisco | D138: CA | E138: 16431172 | J138: 0.04604013975 | K138: 8718035.82 | L138: 435901.791 | M138: 8718035
C139: San Jose | D139: CA | E139: 8196038 | J139: 0.02296529638 | K139: 4348646.15 | L139: 217432.3075 | M139: 4348646
C140: San Leandro | D140: CA | E140: 659582 | J140: 0.001848148596 | K140: 349960.3986 | L140: 17498.01993 | M140: 349960
C141: San Marcos City | D141: CA | E141: 601567 | J141: 0.00168559058 | K141: 319178.8543 | L141: 15958.94272 | M141: 319178
C142: San Mateo | D142: CA | E142: 644380 | J142: =E142/SUM($E$14:$E$201) -> 0.001805552595 | K142: 341894.5357 | L142: =K142*0.05 -> 17094.72678 | M142: 341894
C143: Santa Ana | D143: CA | E143: 5284239 | J143: 0.01480643633 | K143: =J143*$K$9 -> 2803706.57 | L143: 140185.3285 | M143: =ROUNDDOWN(K143,0) -> 2803706
C144: Santa Barbara | D144: CA | E144: 853991 | J144: 0.002392882564 | K144: 453109.7434 | L144: 22655.48717 | M144: 453109
C145: Santa Clara | D145: CA | E145: 903714 | J145: 0.002532206397 | K145: 479491.726 | L145: 23974.5863 | M145: 479491
C146: Santa Clarita | D146: CA | E146: 1108713 | J146: 0.003106613543 | K146: 588259.9031 | L146: 29412.99515 | M146: 588259
C147: Santa Cruz | D147: CA | E147: 498973 | J147: 0.001398122219 | K147: 264744.6261 | L147: 13237.2313 | M147: 264744
C148: Santa Maria | D148: CA | E148: 1382399 | J148: 0.003873481645 | K148: 733471.9641 | L148: 36673.59821 | M148: 733471
C149: Santa Monica | D149: CA | E149: 1031923 | J149: 0.002891447983 | K149: 547516.7369 | L149: 27375.83685 | M149: 547516
C150: Santa Rosa | D150: CA | E150: 1308618 | J150: 0.003666747302 | K150: 694325.3104 | L150: 34716.26552 | M150: 694325
C151: Santee | D151: CA | E151: 253260 | J151: 0.0007096344553 | K151: 134374.4531 | L151: 6718.722656 | M151: 134374
C152: Seaside | D152: CA | E152: 363989 | J152: 0.001019897085 | K152: 193124.942 | L152: 9656.247102 | M152: 193124
C153: Simi Valley | D153: CA | E153: 547246 | J153: 0.001533383152 | K153: 290357.2691 | L153: 14517.86346 | M153: 290357
C154: South Gate | D154: CA | E154: 1359496 | J154: 0.003809307445 | K154: 721320.1119 | L154: 36066.00559 | M154: 721320
C155: South San Francisco | D155: CA | E155: 410836 | J155: 0.001151162367 | K155: 217980.9793 | L155: 10899.04897 | M155: 217980
C156: Stockton | D156: CA | E156: 3225590 | J156: 0.009038102356 | K156: 1711430.515 | L156: 85571.52576 | M156: 1711430
C157: Sunnyvale | D157: CA | E157: 1004607 | J157: 0.002814908557 | K157: 533023.4393 | L157: 26651.17196 | M157: 533023
C158: Temecula | D158: CA | E158: 515274 | J158: 0.001443797616 | K158: 273393.5954 | L158: 13669.67977 | M158: 273393
C159: Thousand Oaks | D159: CA | E159: 557958 | J159: 0.001563398174 | K159: 296040.832 | L159: 14802.0416 | M159: 296040
C160: Torrance | D160: CA | E160: 837528 | J160: 0.002346753242 | K160: 444374.8203 | L160: 22218.74101 | M160: 444374
C161: Tulare | D161: CA | E161: 600163 | J161: 0.001681656573 | K161: 318433.9213 | L161: 15921.69607 | M161: 318433
C162: Turlock | D162: CA | E162: 583994 | J162: 0.001636351039 | K162: 309854.9885 | L162: 15492.74942 | M162: 309854
C163: Tustin | D163: CA | E163: 726651 | J163: 0.002036075916 | K163: 385545.8057 | L163: 19277.29028 | M163: 385545
C164: Union City | D164: CA | E164: 478601 | J164: 0.00134103988 | K164: 253935.6694 | L164: 12696.78347 | M164: 253935
C165: Upland | D165: CA | E165: 523649 | J165: 0.001467264364 | K165: 277837.195 | L165: 13891.85975 | M165: 277837
C166: Vacaville | D166: CA | E166: 453279 | J166: 0.001270087642 | K166: 240500.3464 | L166: 12025.01732 | M166: 240500
C167: Vallejo | D167: CA | E167: 952486 | J167: 0.002668865529 | K167: 505369.128 | L167: 25268.4564 | M167: 505369
C168: San Buenaventura | D168: CA | E168: 673678 | J168: 0.001887645584 | K168: 357439.441 | L168: 17871.97205 | M168: 357439
C169: Victorville | D169: CA | E169: 1192603 | J169: 0.003341673301 | K169: 632770.1805 | L169: 31638.50903 | M169: 632770
C170: Visalia | D170: CA | E170: 1188919 | J170: 0.003331350734 | K170: 630815.5273 | L170: 31540.77636 | M170: 630815
C171: Vista | D171: CA | E171: 770635 | J171: 0.002159319073 | K171: 408882.7951 | L171: 20444.13975 | M171: 408882
C172: Walnut Creek | D172: CA | E172: 260940 | J172: 0.0007311538134 | K172: 138449.3003 | L172: 6922.465016 | M172: 138449
C173: Watsonville | D173: CA | E173: 683245 | J173: 0.001914452316 | K173: 362515.4909 | L173: 18125.77455 | M173: 362515
C174: West Covina | D174: CA | E174: 732715 | J174: 0.002053067243 | K174: 388763.2371 | L174: 19438.16185 | M174: 388763
C175: Westminster | D175: CA | E175: 962303 | J175: 0.00269637276 | K175: 510577.8227 | L175: 25528.89113 | M175: 510577
C176: West Sacramento | D176: CA | E176: 446077 | J176: 0.00124990764 | K176: 236679.116 | L176: 11833.9558 | M176: 236679
C177: Whittier | D177: CA | E177: 722211 | J177: 0.002023635038 | K177: 383190.0346 | L177: 19159.50173 | M177: 383190
C178: Woodland | D178: CA | E178: 469279 | J178: 0.001314919638 | K178: 248989.6114 | L178: 12449.48057 | M178: 248989
C179: Yorba Linda | D179: CA | E179: 200780 | J179: 0.0005625855087 | K179: 106529.664 | L179: 5326.483199 | M179: 106529
C180: Yuba City | D180: CA | E180: 586416 | J180: 0.001643137482 | K180: 311140.051 | L180: 15557.00255 | M180: 311140
C181: Alameda County | D181: CA | E181: 1760088 | J181: 0.004931766127 | K181: 933865.8393 | L181: 46693.29196 | M181: 933865
C182: Contra Costa County | D182: CA | E182: 4090208 | J182: 0.01146076177 | K182: 2170178.722 | L182: 108508.9361 | M182: 2170178
C183: Fresno County | D183: CA | E183: 3097273 | J183: 0.008678558155 | K183: 1643348.202 | L183: 82167.41008 | M183: 1643348
C184: Kern County | D184: CA | E184: 4071674 | J184: 0.01140882951 | K184: 2160344.97 | L184: 108017.2485 | M184: 2160344
C185: Los Angeles County | D185: CA | E185: 20779423 | J185: 0.05822393794 | K185: 11025126.75 | L185: 551256.3377 | M185: 11025126
C186: Marin County | D186: CA | E186: 1367509 | J186: 0.003831759869 | K186: 725571.6419 | L186: 36278.58209 | M186: 725571
C187: Monterey County | D187: CA | E187: 1222025 | J187: 0.003424113738 | K187: 648380.8777 | L187: 32419.04388 | M187: 648380
C188: Orange County | D188: CA | E188: 2397690 | J188: 0.006718326768 | K188: 1272164.11 | L188: 63608.2055 | M188: 1272164
C189: Riverside County | D189: CA | E189: 7531717 | J189: 0.02110386911 | K189: 3996171.338 | L189: 199808.5669 | M189: 3996171
C190: Sacramento County | D190: CA | E190: 5128032 | J190: 0.01436874435 | K190: 2720826.406 | L190: 136041.3203 | M190: 2720826
C191: San Bernardino County | D191: CA | E191: 6519559 | J191: 0.01826780265 | K191: =J191*$K$9 -> 3459141.496 | L191: 172957.0748 | M191: 3459141
C192: San Diego County | D192: CA | E192: 3731709 | J192: 0.01045624767 | K192: 1979966.659 | L192: 98998.33296 | M192: 1979966
C193: San Joaquin County | D193: CA | E193: 2469366 | J193: 0.006919162901 | K193: 1310193.895 | L193: 65509.69475 | M193: 1310193
C194: San Luis Obispo County | D194: CA | E194: 1644434 | J194: 0.004607703648 | K194: 872502.2485 | L194: 43625.11242 | M194: 872502
C195: San Mateo County | D195: CA | E195: 2279680 | J195: 0.006387662778 | K195: 1209550.475 | L195: 60477.52375 | M195: 1209550
C196: Santa Barbara County | D196: CA | E196: 1073897 | J196: 0.00300905912 | K196: 569787.2625 | L196: 28489.36312 | M196: 569787
C197: Santa Clara County | D197: CA | E197: 1388546 | J197: 0.003890705537 | K197: 736733.4336 | L197: 36836.67168 | M197: 736733
C198: Sonoma County | D198: CA | E198: 1695117 | J198: 0.004749717401 | K198: 899393.5871 | L198: 44969.67935 | M198: 899393
C199: Stanislaus County | D199: CA | E199: 2176833 | J199: 0.00609948551 | K199: 1154982.01 | L199: 57749.10051 | M199: 1154982
C200: Ventura County | D200: CA | E200: 1620399 | J200: 0.004540357584 | K200: 859749.7808 | L200: 42987.48904 | M200: 859749
... 166 more rows

Sheet DATA (hidden)
A1: Nonentitlement | B1: Entitlement | C1: Counties | F1: Nonentitlement | G1: Entitlement
A2: Alpine County | B2: Aliso Viejo | C2: Alameda | F2: Alpine County | G2: Aliso Viejo
A3: Alturas | B3: Carlsbad | C3: Alpine | F3: Alturas | G3: Carlsbad
A4: Amador City | B4: Carson | C4: Amador | F4: Amador City | G4: Carson
A5: Amador County | B5: Cerritos | C5: Butte | F5: Amador County | G5: Cerritos
A6: American Canyon | B6: Chico | C6: Calaveras | F6: American Canyon | G6: Chico
A7: Anderson | B7: Chino | C7: Colusa | F7: Anderson | G7: Chino
A8: Angels | B8: Chino Hills | C8: Contra Costa | F8: Angels | G8: Chino Hills
A9: Arcata | B9: Clovis City | C9: Del Norte | F9: Arcata | G9: Clovis City
A10: Artesia | B10: Compton | C10: El Dorado | F10: Artesia | G10: Compton
A11: Atwater | B11: Concord | C11: Fresno | F11: Atwater | G11: Concord
A12: Auburn | B12: Contra Costa County | C12: Glenn | F12: Auburn | G12: Contra Costa County
A13: Avenal | B13: Cupertino City | C13: Humboldt | F13: Avenal | G13: Cupertino City
A14: Benicia | B14: Downey | C14: Imperial | F14: Benicia | G14: Downey
A15: Biggs | B15: El Cajon | C15: Inyo | F15: Biggs | G15: El Cajon
A16: Bishop | B16: El Centro (Colonia Only) | C16: Kern | F16: Bishop | G16: El Centro (Colonia Only)
A17: Blue Lake | B17: Elk Grove | C17: Kings | F17: Blue Lake | G17: Elk Grove
A18: Brawley | B18: Encinitas | C18: Lake | F18: Brawley | G18: Encinitas
A19: Butte County | B19: Escondido | C19: Lassen | F19: Butte County | G19: Escondido
A20: Calaveras County | B20: Fountain Valley | C20: Los Angeles | F20: Calaveras County | G20: Fountain Valley
A21: Calexico | B21: Gardena | C21: Madera | F21: Calexico | G21: Gardena
A22: Calimesa | B22: Gilroy City | C22: Marin | F22: Calimesa | G22: Gilroy City
A23: Calipatria | B23: Glendale | C23: Mariposa | F23: Calipatria | G23: Glendale
A24: Calistoga | B24: Glendora City | C24: Mendocino | F24: Calistoga | G24: Glendora City
A25: Capitola | B25: Hawthorne | C25: Merced | F25: Capitola | G25: Hawthorne
A26: Carmel-by-the-Sea | B26: Hesperia | C26: Modoc | F26: Carmel-by-the-Sea | G26: Hesperia
A27: Clearlake | B27: Huntington Park | C27: Mono | F27: Clearlake | G27: Huntington Park
A28: Colfax | B28: Laguna Niguel | C28: Monterey | F28: Colfax | G28: Laguna Niguel
A29: Colusa | B29: Lake Forest | C29: Napa | F29: Colusa | G29: Lake Forest
A30: Colusa County | B30: Lakewood | C30: Nevada | F30: Colusa County | G30: Lakewood
A31: Corcoran | B31: Lompoc | C31: Orange | F31: Corcoran | G31: Lompoc
A32: Corning | B32: Madera | C32: Placer | F32: Corning | G32: Madera
A33: Crescent City | B33: Merced | C33: Plumas | F33: Crescent City | G33: Merced
A34: Del Norte County | B34: Milpitas City | C34: Riverside | F34: Del Norte County | G34: Milpitas City
A35: Dixon | B35: Montebello | C35: Sacramento | F35: Dixon | G35: Montebello
A36: Dorris | B36: Monterey Park | C36: San Benito | F36: Dorris | G36: Monterey Park
A37: Dos Palos | B37: Mountain View | C37: San Bernardino | F37: Dos Palos | G37: Mountain View
A38: Dunsmuir | B38: Newport Beach | C38: San Diego | F38: Dunsmuir | G38: Newport Beach
A39: El Centro | B39: Norwalk | C39: San Francisco | F39: El Centro | G39: Norwalk
A40: Etna | B40: Palo Alto | C40: San Joaquin | F40: Etna | G40: Palo Alto
A41: Eureka | B41: Paradise | C41: San Luis Obispo | F41: Eureka | G41: Paradise
A42: Ferndale | B42: Paramount City | C42: San Mateo | F42: Ferndale | G42: Paramount City
A43: Firebaugh | B43: Petaluma | C43: Santa Barbara | F43: Firebaugh | G43: Petaluma
A44: Fort Bragg | B44: Pico Rivera | C44: Santa Clara | F44: Fort Bragg | G44: Pico Rivera
A45: Fort Jones | B45: Pittsburg | C45: Santa Cruz | F45: Fort Jones | G45: Pittsburg
A46: Fortuna | B46: Pleasanton City | C46: Shasta | F46: Fortuna | G46: Pleasanton City
A47: Fowler | B47: Rancho Cordova City | C47: Sierra | F47: Fowler | G47: Rancho Cordova City
A48: Greenfield | B48: Rancho Cucamonga | C48: Siskiyou | F48: Greenfield | G48: Rancho Cucamonga
A49: Gridley | B49: Redondo Beach | C49: Solano | F49: Gridley | G49: Redondo Beach
A50: Guadalupe | B50: Redwood City | C50: Sonoma | F50: Guadalupe | G50: Redwood City
A51: Gustine | B51: Rialto | C51: Stanislaus | F51: Gustine | G51: Rialto
A52: Hidden Hills | B52: Rosemead | C52: Sutter | F52: Hidden Hills | G52: Rosemead
A53: Hollister | B53: San Clemente | C53: Tehama | F53: Hollister | G53: San Clemente
A54: Holtville | B54: San Marcos City | C54: Trinity | F54: Holtville | G54: San Marcos City
A55: Huron | B55: San Mateo County | C55: Tulare | F55: Huron | G55: San Mateo County
A56: Imperial | B56: Santa Clara | C56: Tuolumne | F56: Imperial | G56: Santa Clara
A57: Imperial County | B57: Santa Clara County | C57: Ventura | F57: Imperial County | G57: Santa Clara County
A58: Indian Wells | B58: Santa Clarita | C58: Yolo | F58: Indian Wells | G58: Santa Clarita
A59: Industry | B59: Santee | C59: Yuba | F59: Industry | G59: Santee
A60: Inyo County | B60: Seaside | F60: Inyo County | G60: Seaside
A61: Ione | B61: Sunnyvale | F61: Ione | G61: Sunnyvale
A62: Jackson | B62: Torrance | F62: Jackson | G62: Torrance
A63: Kings County | B63: Turlock | F63: Kings County | G63: Turlock
A64: Lake County | B64: Union City | F64: Lake County | G64: Union City
A65: Lakeport | B65: Upland | F65: Lakeport | G65: Upland
A66: Lassen County | B66: Vacaville | F66: Lassen County | G66: Vacaville
A67: Lemoore | B67: Watsonville | F67: Lemoore | G67: Watsonville
A68: Lincoln | B68: West Covina | F68: Lincoln | G68: West Covina
A69: Live Oak | B69: West Sacramento | F69: Live Oak | G69: West Sacramento
A70: Livingston | B70: Whittier | F70: Livingston | G70: Whittier
A71: Loomis | F71: Loomis
A72: Los Banos | F72: Los Banos
A73: Loyalton | F73: Loyalton
A74: Madera County | F74: Madera County
A75: Mammoth Lakes | F75: Mammoth Lakes
A76: Maricopa | F76: Maricopa
A77: Marina | F77: Marina
A78: McFarland | F78: McFarland
A79: Mendocino County | F79: Mendocino County
A80: Modoc County | F80: Modoc County
A81: Mono County | F81: Mono County
A82: Montague | F82: Montague
A83: Mount Shasta | F83: Mount Shasta
A84: Napa County | F84: Napa County
A85: Orange Cove | F85: Orange Cove
A86: Palos Verdes Estates | F86: Palos Verdes Estates
A87: Parlier | F87: Parlier
A88: Pismo Beach | F88: Pismo Beach
A89: Placerville | F89: Placerville
A90: Plymouth | F90: Plymouth
A91: Point Arena | F91: Point Arena
A92: Portola | F92: Portola
A93: Rancho Mirage | F93: Rancho Mirage
A94: Red Bluff | F94: Red Bluff
A95: Rio Dell | F95: Rio Dell
A96: Rio Vista | F96: Rio Vista
A97: San Benito County | F97: San Benito County
A98: San Juan Bautista | F98: San Juan Bautista
A99: San Juan Capistrano | F99: San Juan Capistrano
A100: Sand City | F100: Sand City
A101: Scotts Valley | F101: Scotts Valley
A102: Shasta County | F102: Shasta County
A103: Shasta Lake | F103: Shasta Lake
A104: Sierra County | F104: Sierra County
A105: Soledad | F105: Soledad
A106: Sonora | F106: Sonora
A107: St. Helena | F107: St. Helena
A108: Suisun City | F108: Suisun City
A109: Susanville | F109: Susanville
A110: Sutter Creek | F110: Sutter Creek
A111: Taft | F111: Taft
A112: Tehama | F112: Tehama
A113: Tehama County | F113: Tehama County
A114: Trinidad | F114: Trinidad
A115: Trinity County | F115: Trinity County
A116: Tulelake | F116: Tulelake
A117: Tuolumne County | F117: Tuolumne County
A118: Ukiah | F118: Ukiah
A119: Vernon | F119: Vernon
A120: Wasco | F120: Wasco
A121: Weed | F121: Weed
A122: Westmorland | F122: Westmorland
A123: Wheatland | F123: Wheatland
A124: Williams | F124: Williams
A125: Willits | F125: Willits
A126: Woodlake | F126: Woodlake
A127: Yountville | F127: Yountville
A128: Yreka | F128: Yreka
